fUST/lending_fUST_20260118
["ID","MTS","AMOUNT","RATE_DAILY","PERIOD"]
[402384885,1768669887109,-1236.21,0.00017534,3]
[402384887,1768669887119,-632.1,0.00017534,3]
[402384889,1768669887129,-500.0,0.00017534,3]
[402384890,1768669887138,-500.0,0.00017534,3]
[402384891,1768669887148,-500.0,0.00017534,3]
[402384892,1768669887158,-1103.35,0.00017534,3]
[402384893,1768669887167,-1025.61,0.00017534,3]
[402384894,1768669887177,-500.0,0.00017534,3]
[402384895,1768669887187,-500.0,0.00017534,3]
[402384896,1768669887196,-500.0,0.00017534,3]
[402384897,1768669887205,-500.0,0.00017534,3]
[402384898,1768669887214,-500.0,0.00017534,3]
[402384899,1768669887225,-500.0,0.00017534,3]
[402384900,1768669887235,-500.0,0.00017534,3]
[402384901,1768669887245,-500.0,0.00017534,3]
[402384902,1768669887255,-500.0,0.00017534,3]
[402384903,1768669887264,-500.0,0.00017534,3]
[402384904,1768669887274,-1530.35,0.00017534,3]
[402384905,1768669887283,-1293.36,0.00017534,3]
[402384906,1768669887292,-1411.66,0.00017534,3]
[402384907,1768669887302,-1180.34,0.00017534,3]
[402384908,1768669887311,-500.0,0.00017534,3]
[402384909,1768669887321,-500.0,0.00017534,3]
[402384910,1768669887331,-1399.24,0.00017534,3]
[402384911,1768669887340,-575.62,0.00017534,3]
[402384912,1768669887349,-500.0,0.00017534,3]
[402384913,1768669887359,-500.0,0.00017534,3]
[402384915,1768669887369,-1032.1,0.00017534,3]
[402384917,1768669887378,-500.0,0.00017534,3]
[402384919,1768669887388,-609.57,0.00017534,3]
[402384921,1768669887398,-500.0,0.00017534,3]
[402384923,1768669887407,-1569.6,0.00017534,3]
[402384925,1768669887417,-500.0,0.00017534,3]
[402384928,1768669887427,-500.0,0.00017534,3]
[402384929,1768669887439,-244.26437665,0.00017534,3]
[402384931,1768669887448,-1051.96,0.00017534,3]
[402384933,1768669887458,-500.0,0.00017534,3]
[402384935,1768669887467,-1321.15,0.00017534,3]
[402384937,1768669887477,-500.0,0.00017534,3]
[402384939,1768669887487,-500.0,0.00017534,3]
[402384941,1768669887496,-500.0,0.00017534,3]
[402384943,1768669887506,-545.77,0.00017534,3]
[402384945,1768669887515,-500.0,0.00017534,3]
[402384947,1768669887525,-500.0,0.00017534,3]
[402384949,1768669887535,-500.0,0.00017534,3]
[402384951,1768669887548,-500.0,0.00017534,3]
[402384953,1768669887557,-500.0,0.00017534,3]
[402384955,1768669887569,-500.0,0.00017534,3]
[402384957,1768669887578,-1628.67,0.00017534,3]
[402384959,1768669887588,-352.98387266,0.00017534,3]
[402384961,1768669887597,-1173.22,0.00017534,3]
[402384963,1768669887606,-500.0,0.00017534,3]
[402384965,1768669887616,-500.0,0.00017534,3]
[402384967,1768669887626,-456.1033492,0.00017534,2]
[402384969,1768669887635,-521.93686507,0.00017534,3]
[402384971,1768669887647,-539.32,0.00017534,3]
[402384973,1768669887657,-1249.71,0.00017534,3]
[402384975,1768669887667,-500.0,0.00017534,3]
[402384977,1768669887677,-1452.79,0.00017534,3]
[402384980,1768669887687,-937.01,0.00017534,3]
[402384981,1768669887696,-500.0,0.00017534,3]
[402384983,1768669887705,-972.71,0.00017534,3]
[402384986,1768669887715,-739.58,0.00017534,3]
[402384987,1768669887725,-1972.54,0.00017534,3]
[402384990,1768669887735,-500.0,0.00017534,3]
[402384991,1768669887744,-849.49,0.00017534,3]
[402384993,1768669887754,-500.0,0.00017534,3]
[402384995,1768669887763,-500.0,0.00017534,3]
[402384998,1768669887773,-500.0,0.00017534,3]
[402384999,1768669887782,-500.0,0.00017534,3]
[402385001,1768669887792,-955.79,0.00017534,3]
[402385003,1768669887801,-849.77,0.00017534,3]
[402385006,1768669887811,-500.0,0.00017534,3]
[402385008,1768669887820,-500.0,0.00017534,3]
[402385010,1768669887830,-500.0,0.00017534,3]
[402385012,1768669887839,-2175.59,0.00017534,3]
[402385014,1768669887848,-2633.13,0.00017534,3]
[402385016,1768669887857,-500.0,0.00017534,2]
[402385018,1768669887867,-500.0,0.00017534,3]
[402385020,1768669887876,-500.0,0.00017534,2]
[402385022,1768669887885,-13205.58024204,0.00017576,2]
[402385023,1768669887894,-168.0,0.0001759,2]
[402385025,1768669887903,-2138.33066815,0.000176,2]
[402385027,1768669887912,-3608.47613542,0.000176,2]
[402385029,1768669887921,-208.2,0.00017634,2]
[402385031,1768669887931,-168.0,0.00017707,2]
[402385033,1768669887940,-755126.2515972,0.0001777,2]
[402385035,1768669887949,-3000.0,0.00017798,7]
[402385037,1768669887958,-20000.0,0.000178,2]
[402385039,1768669887967,-32048.0,0.000178,3]
[402385041,1768669887976,-1562.62825924,0.00017808,50]
[402385043,1768669887985,-500.0,0.00017808,3]
[402385045,1768669887995,-673.12713185,0.00017808,3]
[402385047,1768669888006,-500.0,0.00017808,3]
[402385049,1768669888015,-500.0,0.00017808,3]
[402385051,1768669888024,-500.0,0.00017808,3]
[402385053,1768669888033,-500.0,0.00017808,3]
[402385055,1768669888042,-500.0,0.00017808,3]
[402385057,1768669888050,-500.0,0.00017808,3]
[402385059,1768669888059,-500.0,0.00017808,3]
[402385061,1768669888068,-697.21,0.00017808,3]
[402385063,1768669888077,-500.0,0.00017808,3]
[402385065,1768669888086,-500.0,0.00017808,3]
[402385067,1768669888095,-1537.06,0.00017808,3]
[402385069,1768669888105,-500.0,0.00017808,3]
[402385071,1768669888114,-500.0,0.00017808,3]
[402385073,1768669888123,-500.0,0.00017808,3]
[402385075,1768669888133,-727.37,0.00017808,3]
[402385077,1768669888142,-500.0,0.00017808,3]
[402385079,1768669888151,-500.0,0.00017808,3]
[402385081,1768669888160,-500.0,0.00017808,3]
[402385083,1768669888169,-674.4,0.00017808,3]
[402385085,1768669888178,-1051.61,0.00017808,3]
[402385087,1768669888187,-500.0,0.00017808,3]
[402385089,1768669888196,-526.97,0.00017808,3]
[402385091,1768669888205,-500.0,0.00017808,3]
[402385093,1768669888214,-500.0,0.00017808,3]
[402385095,1768669888223,-272.37095351,0.00017808,3]
[402385097,1768669888232,-1003.82,0.00017808,3]
[402385099,1768669888243,-500.0,0.00017808,3]
[402385101,1768669888252,-977.84,0.00017808,3]
[402385103,1768669888261,-562.12,0.00017808,3]
[402385105,1768669888270,-661.08,0.00017808,3]
[402385107,1768669888279,-500.0,0.00017808,3]
[402385109,1768669888289,-1342.63,0.00017808,3]
[402385111,1768669888298,-500.0,0.00017808,3]
[402385113,1768669888307,-546.74,0.00017808,3]
[402385115,1768669888316,-500.0,0.00017808,3]
[402385117,1768669888325,-500.0,0.00017808,3]
[402385119,1768669888335,-500.0,0.00017808,3]
[402385121,1768669888344,-500.0,0.00017808,3]
[402385123,1768669888353,-514.38,0.00017808,3]
[402385124,1768669888363,-548.54460161,0.00017808,3]
[402385126,1768669888373,-500.0,0.00017808,3]
[402385128,1768669888382,-500.0,0.00017808,3]
[402385130,1768669888391,-613.18,0.00017808,3]
[402385132,1768669888400,-500.0,0.00017808,3]
[402385134,1768669888409,-500.0,0.00017808,3]
[402385136,1768669888419,-500.0,0.00017808,3]
[402385139,1768669888434,-500.0,0.00017808,3]
[402385141,1768669888445,-500.0,0.00017808,3]
[402385143,1768669888454,-1091.45,0.00017808,3]
[402385145,1768669888462,-500.0,0.00017808,3]
[402385147,1768669888471,-843.1,0.00017808,3]
[402385149,1768669888480,-500.0,0.00017808,3]
[402385151,1768669888489,-500.0,0.00017808,3]
[402385152,1768669888499,-500.0,0.00017808,3]
[402385154,1768669888509,-500.0,0.00017808,3]
[402385156,1768669888519,-822.64,0.00017808,3]
[402385158,1768669888528,-527.73,0.00017808,3]
[402385161,1768669888538,-891.16,0.00017808,3]
[402385163,1768669888548,-1723.32,0.00017808,3]
[402385165,1768669888558,-500.0,0.00017808,3]
[402385167,1768669888571,-500.0,0.00017808,3]
[402385168,1768669888583,-500.0,0.00017808,3]
[402385170,1768669888593,-500.0,0.00017808,3]
[402385173,1768669888603,-500.0,0.00017808,3]
[402385174,1768669888615,-891.17,0.00017808,3]
[402385176,1768669888624,-756.73,0.00017808,3]
[402385178,1768669888633,-1663.41,0.00017808,3]
[402385180,1768669888644,-500.0,0.00017808,3]
[402385182,1768669888653,-275.02958199,0.00017808,3]
[402385184,1768669888663,-975.35,0.00017808,3]
[402385186,1768669888672,-500.0,0.00017808,3]
[402385188,1768669888681,-500.0,0.00017808,3]
[402385190,1768669888691,-569.01,0.00017808,3]
[402385192,1768669888701,-500.0,0.00017808,3]
[402385194,1768669888710,-770.5,0.00017808,3]
[402385196,1768669888719,-500.0,0.00017808,3]
[402385198,1768669888729,-1208.54,0.00017808,3]
[402385200,1768669888738,-500.0,0.00017808,3]
[402385202,1768669888748,-632.16,0.00017808,3]
[402385204,1768669888757,-1521.64,0.00017808,3]
[402385206,1768669888767,-500.0,0.00017808,3]
[402385208,1768669888777,-500.0,0.00017808,3]
[402385236,1768669889024,-548.34,0.00017808,3]
[402385238,1768669889033,-1008.77,0.00017808,3]
[402385240,1768669889042,-500.0,0.00017808,3]
[402385242,1768669889051,-2004.45,0.00017808,3]
[402385244,1768669889061,-945.54,0.00017808,3]
[402385246,1768669889070,-601.7,0.00017808,3]
[402385248,1768669889079,-574.65,0.00017808,3]
[402385250,1768669889088,-1355.06,0.00017808,3]
[402385252,1768669889099,-600.66,0.00017808,3]
[402385254,1768669889108,-963.02,0.00017808,3]
[402385256,1768669889118,-619.79,0.00017808,3]
[402385258,1768669889128,-500.0,0.00017808,3]
[402385260,1768669889137,-1122.16,0.00017808,3]
[402385262,1768669889146,-500.0,0.00017808,3]
[402385264,1768669889155,-500.0,0.00017808,3]
[402385266,1768669889164,-500.0,0.00017808,3]
[402385268,1768669889173,-520.55,0.00017808,3]
[402385269,1768669889182,-980.93,0.00017808,3]
[402385271,1768669889191,-1043.62,0.00017808,3]
[402385273,1768669889200,-513.25,0.00017808,3]
[402385276,1768669889210,-914.72,0.00017808,3]
[402385277,1768669889219,-997.98,0.00017808,3]
[402385280,1768669889229,-500.0,0.00017808,3]
[402385282,1768669889238,-500.0,0.00017808,3]
[402385284,1768669889248,-1293.8,0.00017808,3]
[402385285,1768669889257,-500.0,0.00017808,3]
[402385287,1768669889266,-500.0,0.00017808,3]
[402385289,1768669889275,-1826.55,0.00017808,3]
[402385291,1768669889286,-649.67,0.00017808,3]
[402385293,1768669889296,-500.0,0.00017808,3]
[402385295,1768669889305,-484.52529222,0.00017808,3]
[402385297,1768669889314,-500.0,0.00017808,3]
[402385299,1768669889324,-500.0,0.00017808,3]
[402385301,1768669889333,-972.93,0.00017808,3]
[402385303,1768669889342,-500.0,0.00017808,3]
[402385305,1768669889352,-500.0,0.00017808,3]
[402385307,1768669889361,-500.0,0.00017808,3]
[402385309,1768669889370,-887.91,0.00017808,3]
[402385311,1768669889379,-873.02,0.00017808,3]
[402385313,1768669889389,-500.0,0.00017808,2]
[402385315,1768669889398,-500.0,0.00017808,3]
[402385317,1768669889408,-1225.73,0.00017808,3]
[402385319,1768669889417,-500.0,0.00017808,3]
[402385321,1768669889427,-1346.87,0.00017808,3]
[402385323,1768669889437,-426.38732043,0.00017808,3]
[402385325,1768669889446,-156.77330136,0.00017808,2]
[402385327,1768669889454,-540.9,0.00017808,3]
[402385329,1768669889464,-1000.0,0.00017808,2]
[402385331,1768669889473,-853.74,0.00017808,3]
[402385333,1768669889482,-637.34,0.00017808,3]
[402385335,1768669889491,-500.0,0.00017808,3]
[402385337,1768669889500,-500.0,0.00017808,3]
[402385339,1768669889509,-500.0,0.00017808,3]
[402385341,1768669889518,-500.0,0.00017808,3]
[402385343,1768669889527,-500.0,0.00017808,3]
[402385345,1768669889536,-543.12,0.00017808,3]
[402385347,1768669889545,-874.93,0.00017808,3]
[402385349,1768669889555,-1510.5,0.00017808,3]
[402385351,1768669889564,-500.0,0.00017808,3]
[402385353,1768669889576,-510.23,0.00017808,3]
[402385355,1768669889585,-1075.6,0.00017808,3]
[402385357,1768669889595,-500.0,0.00017808,3]
[402385359,1768669889603,-500.0,0.00017808,3]
[402385361,1768669889614,-251.11469402,0.00017808,3]
[402385363,1768669889623,-500.0,0.00017808,3]
[402385365,1768669889633,-500.0,0.00017808,3]
[402385367,1768669889642,-1554.86,0.00017808,3]
[402385369,1768669889653,-500.0,0.00017808,3]
[402385371,1768669889662,-500.0,0.00017808,3]
[402385373,1768669889671,-309.63209923,0.00017808,3]
[402385375,1768669889680,-500.0,0.00017808,3]
[402385377,1768669889689,-516.86,0.00017808,3]
[402385378,1768669889699,-748.62,0.00017808,3]
[402385381,1768669889708,-1203.14,0.00017808,3]
[402385383,1768669889717,-500.0,0.00017808,3]
[402385385,1768669889727,-500.0,0.00017808,3]
[402385386,1768669889736,-500.0,0.00017808,3]
[402385388,1768669889746,-940.17,0.00017808,3]
[402385389,1768669889755,-907.89,0.00017808,3]
[402385390,1768669889764,-500.0,0.00017808,3]
[402385391,1768669889773,-500.0,0.00017808,3]
[402385392,1768669889782,-500.0,0.00017808,3]
[402385393,1768669889792,-500.0,0.00017808,3]
[402385394,1768669889801,-1259.96,0.00017808,3]
[402385395,1768669889810,-962.36,0.00017808,3]
[402385396,1768669889821,-310.90446794,0.00017808,3]
[402385398,1768669889830,-500.0,0.00017808,3]
[402385400,1768669889839,-606.69,0.00017808,3]
[402385402,1768669889848,-500.0,0.00017808,3]
[402385404,1768669889858,-500.0,0.00017808,3]
[402385406,1768669889867,-1903.61,0.00017808,3]
[402385408,1768669889876,-500.0,0.00017808,3]
[402385410,1768669889885,-621.29598782,0.00017808,3]
[402385412,1768669889894,-500.0,0.00017808,3]
[402385414,1768669889903,-500.0,0.00017808,3]
[402385416,1768669889913,-500.0,0.00017808,3]
[402385418,1768669889923,-500.0,0.00017808,3]
[402385420,1768669889932,-1200.0,0.00017808,2]
[402385422,1768669889942,-500.0,0.00017808,3]
[402385424,1768669889951,-500.0,0.00017808,3]
[402385426,1768669889960,-1317.86,0.00017808,3]
[402385428,1768669889969,-500.0,0.00017808,3]
[402385430,1768669889979,-500.0,0.00017808,3]
[402385432,1768669889988,-500.0,0.00017808,3]
[402385434,1768669889997,-500.0,0.00017808,3]
[402385436,1768669890006,-500.0,0.00017808,3]
[402385438,1768669890015,-1739.91,0.00017808,3]
[402385440,1768669890027,-1530.43,0.00017808,3]
[402385442,1768669890037,-719.6,0.00017808,3]
[402385444,1768669890046,-813.96,0.00017808,3]
[402385446,1768669890055,-500.0,0.00017808,3]
[402385448,1768669890065,-745.72,0.00017808,3]
[402385451,1768669890074,-500.0,0.00017808,3]
[402385452,1768669890083,-676.17,0.00017808,3]
[402385454,1768669890092,-500.0,0.00017808,3]
[402385456,1768669890101,-635.29,0.00017808,3]
[402385459,1768669890111,-500.0,0.00017808,3]
[402385461,1768669890121,-729.75,0.00017808,3]
[402385463,1768669890130,-500.0,0.00017808,3]
[402385464,1768669890140,-530.32,0.00017808,3]
[402385466,1768669890149,-500.0,0.00017808,3]
[402385468,1768669890158,-547.09236024,0.00017808,3]
[402385470,1768669890167,-500.0,0.00017808,3]
[402385472,1768669890177,-500.0,0.00017808,3]
[402385474,1768669890186,-806.08,0.00017808,3]
[402385476,1768669890195,-500.0,0.00017808,3]
[402385478,1768669890205,-500.0,0.00017808,3]
[402385480,1768669890219,-500.0,0.00017808,3]
[402385483,1768669890229,-500.0,0.00017808,3]
[402385484,1768669890238,-500.0,0.00017808,3]
[402385486,1768669890248,-500.0,0.00017808,3]
[402385489,1768669890258,-500.0,0.00017808,3]
[402385491,1768669890268,-500.0,0.00017808,3]
[402385493,1768669890277,-500.0,0.00017808,3]
[402385495,1768669890286,-775.08,0.00017808,3]
[402385497,1768669890295,-1108.08,0.00017808,3]
[402385499,1768669890304,-1138.7,0.00017808,3]
[402385501,1768669890314,-500.0,0.00017808,3]
[402385502,1768669890323,-1823.52,0.00017808,3]
[402385504,1768669890332,-500.0,0.00017808,3]
[402385506,1768669890342,-500.0,0.00017808,3]
[402385508,1768669890351,-834.18,0.00017808,3]
[402385511,1768669890360,-500.0,0.00017808,3]
[402385513,1768669890369,-500.0,0.00017808,3]
[402385515,1768669890378,-500.0,0.00017808,3]
[402385517,1768669890387,-838.02,0.00017808,3]
[402385519,1768669890397,-639.48,0.00017808,3]
[402385521,1768669890406,-995.33,0.00017808,3]
[402385523,1768669890416,-500.0,0.00017808,3]
[402385525,1768669890424,-500.0,0.00017808,3]
[402385527,1768669890434,-500.0,0.00017808,3]
[402385529,1768669890443,-500.0,0.00017808,3]
[402385531,1768669890452,-500.0,0.00017808,3]
[402385533,1768669890461,-1195.06,0.00017808,3]
[402385535,1768669890471,-938.53,0.00017808,3]
[402385537,1768669890480,-311.24128532,0.00017808,3]
[402385539,1768669890489,-500.0,0.00017808,3]
[402385541,1768669890499,-500.0,0.00017808,3]
[402385543,1768669890508,-500.0,0.00017808,3]
[402385545,1768669890520,-1163.03,0.00017808,3]
[402385547,1768669890529,-500.0,0.00017808,3]
[402385549,1768669890538,-664.56,0.00017808,3]
[402385551,1768669890547,-490.09113196,0.00017808,3]
[402385553,1768669890556,-539.14,0.00017808,3]
[402385555,1768669890566,-826.62,0.00017808,3]
[402385557,1768669890579,-1311.5,0.00017808,3]
[402385559,1768669890588,-500.0,0.00017808,3]
[402385561,1768669890597,-526.93,0.00017808,3]
[402385563,1768669890607,-826.22,0.00017808,3]
[402385565,1768669890616,-500.0,0.00017808,3]
[402385567,1768669890626,-500.0,0.00017808,3]
[402385569,1768669890635,-665.83,0.00017808,3]
[402385571,1768669890646,-1437.78,0.00017808,3]
[402385573,1768669890655,-911.88,0.00017808,3]
[402385575,1768669890664,-744.04,0.00017808,3]
[402385577,1768669890673,-500.0,0.00017808,3]
[402385579,1768669890682,-760.56,0.00017808,3]
[402385581,1768669890691,-1617.66,0.00017808,3]
[402385583,1768669890700,-500.0,0.00017808,3]
[402385584,1768669890709,-989.16,0.00017808,3]
[402385586,1768669890718,-548.8,0.00017808,3]
[402385588,1768669890727,-1392.58,0.00017808,3]
[402385590,1768669890735,-500.0,0.00017808,3]
[402385592,1768669890745,-500.0,0.00017808,3]
[402385594,1768669890754,-500.0,0.00017808,3]
[402385596,1768669890763,-1290.77,0.00017808,3]
[402385598,1768669890772,-500.0,0.00017808,3]
[402385600,1768669890780,-1139.26,0.00017808,3]
[402385602,1768669890790,-500.0,0.00017808,3]
[402385604,1768669890799,-563.28,0.00017808,3]
[402385606,1768669890808,-1235.64,0.00017808,3]
[402385608,1768669890817,-1363.63,0.00017808,3]
[402385610,1768669890826,-500.0,0.00017808,3]
[402385612,1768669890836,-500.0,0.00017808,3]
[402385614,1768669890845,-584.78,0.00017808,3]
[402385616,1768669890855,-591.12,0.00017808,3]
[402385618,1768669890865,-500.0,0.00017808,3]
[402385620,1768669890875,-500.0,0.00017808,3]
[402385622,1768669890884,-500.0,0.00017808,3]
[402385624,1768669890893,-500.0,0.00017808,3]
[402385626,1768669890903,-547.667889,0.00017808,3]
[402385628,1768669890913,-500.0,0.00017808,3]
[402385630,1768669890922,-500.0,0.00017808,3]
[402385632,1768669890931,-500.0,0.00017808,3]
[402385634,1768669890940,-497.71228405,0.00017808,3]
[402385636,1768669890950,-659.9,0.00017808,3]
[402385638,1768669890959,-500.0,0.00017808,3]
[402385641,1768669890969,-562.53,0.00017808,3]
[402385642,1768669890978,-1216.62,0.00017808,3]
[402385644,1768669890987,-1459.54,0.00017808,3]
[402385646,1768669890996,-1408.31,0.00017808,3]
[402385648,1768669891006,-220.42501894,0.00017808,3]
[402385651,1768669891015,-500.0,0.00017808,3]
[402385653,1768669891025,-1004.35,0.00017808,3]
[402385655,1768669891035,-2141.92,0.00017808,3]
[402385657,1768669891045,-500.0,0.00017808,3]
[402385659,1768669891055,-500.0,0.00017808,3]
[402385661,1768669891065,-1392.79,0.00017808,3]
[402385662,1768669891075,-500.0,0.00017808,3]
[402385665,1768669891084,-1651.69,0.00017808,3]
[402385667,1768669891093,-500.0,0.00017808,3]
[402385669,1768669891103,-500.0,0.00017808,3]
[402385670,1768669891111,-500.0,0.00017808,3]
[402385673,1768669891121,-310.11,0.00017808,3]
[402385675,1768669891132,-500.0,0.00017808,3]
[402385676,1768669891142,-1022.52,0.00017808,3]
[402385679,1768669891152,-890.63,0.00017808,3]
[402385681,1768669891162,-500.0,0.00017808,3]
[402385683,1768669891172,-524.68,0.00017808,3]
[402385685,1768669891181,-525.47,0.00017808,3]
[402385687,1768669891191,-500.0,0.00017808,3]
[402385689,1768669891200,-1952.81,0.00017808,3]
[402385691,1768669891211,-500.0,0.00017808,3]
[402385693,1768669891220,-702.75,0.00017808,3]
[402385695,1768669891231,-500.0,0.00017808,3]
[402385697,1768669891240,-1977.43,0.00017808,3]
[402385699,1768669891250,-633.32,0.00017808,3]
[402385701,1768669891259,-500.0,0.00017808,3]
[402385703,1768669891269,-500.0,0.00017808,3]
[402385705,1768669891278,-500.0,0.00017808,3]
[402385707,1768669891288,-769.6,0.00017808,3]
[402385709,1768669891297,-500.0,0.00017808,3]
[402385711,1768669891307,-500.0,0.00017808,3]
[402385713,1768669891316,-500.0,0.00017808,3]
[402385715,1768669891325,-500.0,0.00017808,3]
[402385717,1768669891334,-500.0,0.00017808,3]
[402385719,1768669891344,-808.67,0.00017808,3]
[402385721,1768669891354,-347.44370923,0.00017808,3]
[402385723,1768669891363,-505.87,0.00017808,3]
[402385725,1768669891373,-500.0,0.00017808,3]
[402385726,1768669891382,-1351.71,0.00017808,3]
[402385729,1768669891391,-500.0,0.00017808,3]
[402385731,1768669891400,-1112.95,0.00017808,3]
[402385732,1768669891409,-1241.58,0.00017808,3]
[402385735,1768669891419,-500.0,0.00017808,3]
[402385736,1768669891428,-714.16,0.00017808,3]
[402385739,1768669891437,-1757.22,0.00017808,3]
[402385741,1768669891447,-500.0,0.00017808,3]
[402385743,1768669891457,-500.0,0.00017808,3]
[402385745,1768669891466,-856.76,0.00017808,3]
[402385747,1768669891475,-500.0,0.00017808,3]
[402385749,1768669891484,-576.09,0.00017808,3]
[402385751,1768669891493,-762.99,0.00017808,3]
[402385753,1768669891502,-1716.41,0.00017808,3]
[402385754,1768669891511,-974.44,0.00017808,3]
[402385756,1768669891522,-500.0,0.00017808,3]
[402385758,1768669891531,-500.0,0.00017808,3]
[402385760,1768669891540,-500.0,0.00017808,3]
[402385762,1768669891548,-500.0,0.00017808,3]
[402385764,1768669891559,-500.0,0.00017808,3]
[402385766,1768669891569,-500.0,0.00017808,3]
[402385768,1768669891580,-500.0,0.00017808,3]
[402385770,1768669891589,-500.0,0.00017808,3]
[402385772,1768669891599,-500.0,0.00017808,3]
[402385774,1768669891608,-500.0,0.00017808,3]
[402385776,1768669891618,-605.29,0.00017808,3]
[402385778,1768669891627,-500.0,0.00017808,3]
[402385780,1768669891637,-500.0,0.00017808,3]
[402385782,1768669891649,-500.0,0.00017808,3]
[402385784,1768669891658,-1502.15,0.00017808,3]
[402385786,1768669891668,-534.13,0.00017808,3]
[402385788,1768669891677,-778.71,0.00017808,3]
[402385790,1768669891686,-1453.27,0.00017808,3]
[402385792,1768669891695,-1503.68,0.00017808,3]
[402385794,1768669891704,-408.02411447,0.00017808,3]
[402385796,1768669891714,-500.0,0.00017808,3]
[402385798,1768669891723,-500.0,0.00017808,3]
[402385800,1768669891732,-500.0,0.00017808,3]
[402385802,1768669891741,-7566.04,0.00017808,3]
[402385804,1768669891751,-2006.78,0.00017808,3]
[402385806,1768669891759,-2532.74,0.00017808,3]
[402385808,1768669891769,-709.42,0.00017808,3]
[402385810,1768669891778,-500.0,0.00017808,3]
[402385812,1768669891787,-500.0,0.00017808,3]
[402385814,1768669891796,-500.0,0.00017808,3]
[402385816,1768669891806,-500.0,0.00017808,3]
[402385818,1768669891815,-876.59,0.00017808,3]
[402385820,1768669891824,-500.0,0.00017808,3]
[402385822,1768669891834,-524.22048595,0.00017808,3]
[402385824,1768669891843,-1597.27,0.00017808,3]
[402385826,1768669891853,-500.0,0.00017808,3]
[402385828,1768669891863,-500.0,0.00017808,3]
[402385830,1768669891872,-731.96,0.00017808,3]
[402385832,1768669891881,-500.0,0.00017808,3]
[402385834,1768669891890,-887.59,0.00017808,3]
[402385836,1768669891899,-500.0,0.00017808,3]
[402385838,1768669891909,-577.24,0.00017808,3]
[402385840,1768669891918,-771.67,0.00017808,3]
[402385842,1768669891927,-500.0,0.00017808,3]
[402385844,1768669891936,-500.0,0.00017808,3]
[402385846,1768669891946,-1494.01,0.00017808,3]
[402385848,1768669891955,-500.0,0.00017808,3]
[402385850,1768669891964,-806.92,0.00017808,3]
[402385852,1768669891973,-2025.2,0.00017808,3]
[402385854,1768669891982,-500.0,0.00017808,3]
[402385856,1768669891992,-500.0,0.00017808,3]
[402385858,1768669892001,-500.0,0.00017808,3]
[402385860,1768669892011,-582.23,0.00017808,3]
[402385862,1768669892020,-500.0,0.00017808,3]
[402385884,1768669892212,-877.12,0.00017808,3]
[402385887,1768669892222,-890.53,0.00017808,3]
[402385889,1768669892232,-1695.64,0.00017808,3]
[402385891,1768669892241,-648.78,0.00017808,3]
[402385893,1768669892250,-1396.54,0.00017808,3]
[402385895,1768669892259,-500.0,0.00017808,3]